fUST/lending_fUST_20241008
["ID","MTS","AMOUNT","RATE_DAILY","PERIOD"]
[340022929,1728334287401,-500.0,0.00039452,120]
[340022930,1728334287416,-504.35,0.00039452,120]
[340022931,1728334287430,-500.0,0.00039452,120]
[340022932,1728334287444,-851.04,0.00039452,120]
[340022933,1728334287457,-500.0,0.00039452,120]
[340022934,1728334287471,-523.84,0.00039452,120]
[340022935,1728334287486,-757.96,0.00039452,30]
[340022936,1728334287501,-500.0,0.00039452,120]
[340022937,1728334287514,-501.82330437,0.00039452,120]
[340022938,1728334287528,-563.6,0.00039452,120]
[340022939,1728334287541,-555.29,0.00039452,120]
[340022940,1728334287554,-500.0,0.00039452,120]
[340022941,1728334287567,-500.0,0.00039452,120]
[340022942,1728334287580,-500.0,0.00039452,120]
[340022943,1728334287593,-500.0,0.00039452,120]
[340022944,1728334287608,-500.0,0.00039452,120]
[340022945,1728334287623,-500.0,0.00039452,120]
[340022946,1728334287638,-500.0,0.00039452,120]
[340022947,1728334287653,-500.0,0.00039452,120]
[340022948,1728334287668,-743.56,0.00039452,120]
[340022949,1728334287682,-754.92,0.00039452,120]
[340022950,1728334287697,-1365.58,0.00039452,120]
[340022951,1728334287712,-500.80360102,0.00039452,120]
[340022952,1728334287725,-500.0,0.00039452,120]
[340022953,1728334287740,-500.0,0.00039452,120]
[340022954,1728334287755,-623.42,0.00039452,120]
[340022955,1728334287785,-500.0,0.00039452,120]
[340022956,1728334287809,-861.29,0.00039452,120]
[340022957,1728334287830,-500.0,0.00039452,2]
[340022958,1728334287851,-500.0,0.00039452,120]
[340022959,1728334287869,-573.92,0.00039452,120]
[340022960,1728334287887,-555.73,0.00039452,120]
[340022961,1728334287903,-500.0,0.00039452,120]
[340022962,1728334287919,-917.57,0.00039452,120]
[340022963,1728334288147,-500.0,0.00039452,120]
[340022964,1728334288162,-500.0,0.00039452,120]
[340022965,1728334288174,-535.48105154,0.00039452,120]
[340022966,1728334288186,-501.03279091,0.00039452,120]
[340022967,1728334288196,-500.0,0.00039452,120]
[340022968,1728334288207,-544.85,0.00039452,120]
[340022969,1728334288218,-500.0,0.00039452,120]
[340022970,1728334288228,-571.4,0.00039452,60]
[340022971,1728334288239,-500.0,0.00039452,120]
[340022972,1728334288250,-500.0,0.00039452,120]
[340022973,1728334288261,-719.55,0.00039452,120]
[340022974,1728334288271,-500.0,0.00039452,120]
[340022975,1728334288282,-500.0,0.00039452,120]
[340022976,1728334288299,-640.61,0.00039452,120]
[340022977,1728334288310,-500.0,0.00039452,120]
[340022978,1728334288321,-500.0,0.00039452,120]
[340022979,1728334288333,-918.63,0.00039452,120]
[340022980,1728334288345,-531.93084842,0.00039452,120]
[340022981,1728334288356,-812.73,0.00039452,120]
[340022982,1728334288367,-500.66430889,0.00039452,120]
[340022983,1728334288378,-500.0,0.00039452,120]
[340022984,1728334288389,-500.0,0.00039452,120]
[340022985,1728334288400,-500.0,0.00039452,120]
[340022986,1728334288412,-500.0,0.00039452,120]
[340022987,1728334288423,-502.3,0.00039452,120]
[340022988,1728334288434,-501.03052644,0.00039452,120]
[340022989,1728334288445,-500.0,0.00039452,120]
[340022990,1728334288457,-500.0,0.00039452,120]
[340022991,1728334288469,-708.61,0.00039452,120]
[340022992,1728334288480,-500.0,0.00039452,120]
[340022993,1728334288491,-537.44,0.00039452,120]
[340022994,1728334288502,-500.0,0.00039452,120]
[340022995,1728334288513,-500.0,0.00039452,120]
[340022996,1728334288524,-500.0,0.00039452,120]
[340022997,1728334288536,-610.21,0.00039452,120]
[340022998,1728334288546,-554.6,0.00039452,120]
[340022999,1728334288559,-509.36377412,0.00039452,120]
[340023000,1728334288569,-492.74649896,0.00039452,120]
[340023001,1728334288580,-500.0,0.00039452,120]
[340023002,1728334288590,-500.0,0.00039452,120]
[340023003,1728334288600,-500.0,0.00039452,120]
[340023004,1728334288609,-500.0,0.00039452,120]
[340023005,1728334288619,-500.0,0.00039452,120]
[340023006,1728334288628,-500.0,0.00039452,120]
[340023007,1728334288637,-500.0,0.00039452,120]
[340023008,1728334288647,-500.0,0.00039452,120]
[340023009,1728334288657,-500.0,0.00039452,120]
[340023010,1728334288668,-500.0,0.00039452,120]
[340023011,1728334288679,-500.0,0.00039452,120]
[340023012,1728334288691,-394.50304213,0.00039452,120]
[340023013,1728334288701,-501.04604966,0.00039452,120]
[340023014,1728334288712,-760.72,0.00039452,120]
[340023015,1728334288722,-500.0,0.00039452,120]
[340023016,1728334288733,-500.0,0.00039452,120]
[340023017,1728334288744,-505.93,0.00039452,120]
[340023018,1728334288756,-590.76546421,0.00039452,120]
[340023019,1728334288767,-500.0,0.00039452,120]
[340023020,1728334288777,-579.67,0.00039452,120]
[340023021,1728334288787,-500.0,0.00039452,120]
[340023022,1728334288797,-500.0,0.00039452,120]
[340023023,1728334288806,-500.0,0.00039452,120]
[340023024,1728334288816,-500.0,0.00039452,120]
[340023025,1728334288826,-909.57,0.00039452,120]
[340023026,1728334288836,-699.58,0.00039452,120]
[340023027,1728334288845,-778.22,0.00039452,120]
[340023028,1728334288855,-500.0,0.00039452,120]
[340023029,1728334288865,-1176.62,0.00039452,120]
[340023030,1728334288875,-500.0,0.00039452,120]
[340023031,1728334288885,-538.25,0.00039452,120]
[340023032,1728334288894,-500.0,0.00039452,120]
[340023033,1728334288904,-500.0,0.00039452,120]
[340023034,1728334288914,-628.45,0.00039452,120]
[340023035,1728334288924,-500.0,0.00039452,120]
[340023036,1728334288934,-500.0,0.00039452,120]
[340023037,1728334288943,-500.0,0.00039452,30]
[340023038,1728334288954,-500.0,0.00039452,120]
[340023039,1728334288963,-799.02,0.00039452,120]
[340023040,1728334288973,-500.0,0.00039452,120]
[340023041,1728334288983,-500.0,0.00039452,120]
[340023042,1728334288993,-1344.11,0.00039452,21]
[340023043,1728334289003,-500.0,0.00039452,120]
[340023044,1728334289012,-500.0,0.00039452,120]
[340023045,1728334289022,-500.0,0.00039452,120]
[340023046,1728334289032,-1176.49,0.00039452,120]
[340023047,1728334289042,-538.89,0.00039452,120]
[340023048,1728334289052,-500.0,0.00039452,120]
[340023049,1728334289062,-500.0,0.00039452,120]
[340023050,1728334289072,-500.0,0.00039452,120]
[340023051,1728334289082,-500.0,0.00039452,120]
[340023052,1728334289091,-2556.51,0.00039452,120]
[340023053,1728334289101,-500.0,0.00039452,120]
[340023054,1728334289113,-500.0,0.00039452,120]
[340023055,1728334289123,-500.0,0.00039452,120]
[340023056,1728334289133,-500.0,0.00039452,120]
[340023057,1728334289144,-500.0,0.00039452,120]
[340023058,1728334289154,-686.35,0.00039452,120]
[340023059,1728334289164,-500.0,0.00039452,120]
[340023060,1728334289174,-1127.5,0.00039452,120]
[340023061,1728334289184,-618.33,0.00039452,120]
[340023062,1728334289194,-336.73,0.00039452,7]
[340023063,1728334289206,-557.71,0.00039452,120]
[340023064,1728334289215,-554.61,0.00039452,120]
[340023065,1728334289226,-724.85,0.00039452,120]
[340023066,1728334289235,-500.0,0.00039452,120]
[340023067,1728334289244,-231.82098566,0.00039452,120]
[340023068,1728334289253,-500.0,0.00039452,120]
[340023069,1728334289263,-500.0,0.00039452,120]
[340023070,1728334289273,-500.0,0.00039452,120]
[340023071,1728334289282,-500.0,0.00039452,120]
[340023072,1728334289293,-500.0,0.00039452,120]
[340023073,1728334289302,-500.0,0.00039452,120]
[340023074,1728334289312,-500.0,0.00039452,120]
[340023075,1728334289322,-500.0,0.00039452,120]
[340023076,1728334289332,-500.0,0.00039452,120]
[340023077,1728334289341,-500.0,0.00039452,120]
[340023078,1728334289350,-500.0,0.00039452,120]
[340023079,1728334289360,-1000.0,0.00039452,120]
[340023080,1728334289370,-575.14,0.00039452,120]
[340023081,1728334289379,-500.0,0.00039452,120]
[340023082,1728334289389,-500.0,0.00039452,120]
[340023083,1728334289398,-500.0,0.00039452,120]
[340023084,1728334289407,-500.0,0.00039452,120]
[340023085,1728334289417,-500.0,0.00039452,120]
[340023086,1728334289427,-555.83176973,0.00039452,120]
[340023087,1728334289437,-500.0,0.00039452,120]
[340023088,1728334289446,-501.94,0.00039452,120]
[340023089,1728334289456,-500.0,0.00039452,120]
[340023090,1728334289466,-557.73,0.00039452,120]
[340023091,1728334289475,-500.0,0.00039452,120]
[340023092,1728334289485,-819.33,0.00039452,120]
[340023093,1728334289495,-500.0,0.00039452,120]
[340023094,1728334289504,-521.05,0.00039452,120]
[340023095,1728334289514,-500.0,0.00039452,120]
[340023096,1728334289524,-1837.2,0.00039452,120]
[340023097,1728334289533,-416.35204056,0.00039452,120]
[340023098,1728334289543,-500.60889509,0.00039452,120]
[340023099,1728334289552,-1265.51,0.00039452,120]
[340023100,1728334289562,-297.19114442,0.00039452,120]
[340023101,1728334289572,-518.1,0.00039452,120]
[340023102,1728334289581,-583.01,0.00039452,120]
[340023103,1728334289591,-500.0,0.00039452,120]
[340023104,1728334289602,-500.0,0.00039452,120]
[340023105,1728334289611,-500.0,0.00039452,120]
[340023106,1728334289621,-500.0,0.00039452,120]
[340023107,1728334289631,-500.0,0.00039452,120]
[340023108,1728334289640,-332.49099083,0.00039452,120]
[340023109,1728334289650,-500.85503426,0.00039452,120]
[340023110,1728334289660,-500.0,0.00039452,120]
[340023111,1728334289670,-1208.8,0.00039452,120]
[340023112,1728334289680,-500.0,0.00039452,120]
[340023113,1728334289690,-497.45637026,0.00039452,120]
[340023114,1728334289700,-500.0,0.00039452,120]
[340023115,1728334289710,-171.12454152,0.00039452,120]
[340023116,1728334289720,-501.19519663,0.00039452,120]
[340023117,1728334289730,-500.0,0.00039452,120]
[340023118,1728334289740,-500.0,0.00039452,120]
[340023119,1728334289750,-500.0,0.00039452,120]
[340023120,1728334289759,-500.0,0.00039452,120]
[340023121,1728334289769,-618.94,0.00039452,120]
[340023122,1728334289779,-500.0,0.00039452,120]
[340023123,1728334289788,-500.0,0.00039452,120]
[340023124,1728334289798,-500.0,0.00039452,120]
[340023125,1728334289808,-500.81131154,0.00039452,120]
[340023126,1728334289818,-500.0,0.00039452,120]
[340023127,1728334289827,-500.0,0.00039452,120]
[340023128,1728334289837,-500.0,0.00039452,120]
[340023129,1728334289847,-718.42,0.00039452,120]
[340023130,1728334289857,-506.12411124,0.00039452,120]
[340023131,1728334289867,-500.0,0.00039452,120]
[340023132,1728334289877,-705.43,0.00039452,120]
[340023133,1728334289889,-500.0,0.00039452,120]
[340023134,1728334289900,-500.0,0.00039452,120]
[340023135,1728334289910,-500.0,0.00039452,120]
[340023136,1728334289920,-512.16,0.00039452,7]
[340023137,1728334289931,-500.0,0.00039452,120]
[340023138,1728334289942,-1000.59,0.00039452,120]
[340023139,1728334289952,-500.0,0.00039452,120]
[340023140,1728334289962,-2499.96,0.00039452,120]
[340023141,1728334289972,-500.0,0.00039452,120]
[340023142,1728334289984,-500.0,0.00039452,120]
[340023143,1728334289993,-500.0,0.00039452,120]
[340023144,1728334290003,-550.18,0.00039452,120]
[340023145,1728334290013,-501.24676984,0.00039452,120]
[340023146,1728334290023,-500.0,0.00039452,120]
[340023147,1728334290033,-615.51,0.00039452,120]
[340023148,1728334290043,-500.0,0.00039452,120]
[340023149,1728334290057,-824.07,0.00039452,120]
[340023150,1728334290068,-500.0,0.00039452,120]
[340023151,1728334290079,-1097.32,0.00039452,120]
[340023152,1728334290089,-500.0,0.00039452,120]
[340023153,1728334290100,-500.0,0.00039452,120]
[340023154,1728334290112,-500.0,0.00039452,120]
[340023155,1728334290124,-500.0,0.00039452,120]
[340023156,1728334290135,-516.16,0.00039452,120]
[340023157,1728334290147,-500.0,0.00039452,120]
[340023158,1728334290160,-500.0,0.00039452,120]
[340023159,1728334290169,-500.0,0.00039452,120]
[340023160,1728334290180,-610.15604564,0.00039452,120]
[340023161,1728334290192,-514.48,0.00039452,120]
[340023162,1728334290202,-500.0,0.00039452,120]
[340023163,1728334290211,-500.0,0.00039452,120]
[340023164,1728334290221,-501.57714869,0.00039452,120]
[340023165,1728334290232,-584.54,0.00039452,120]
[340023166,1728334290243,-456.53523308,0.00039452,120]
[340023167,1728334290254,-500.0,0.00039452,120]
[340023168,1728334290266,-502.32,0.00039452,120]
[340023169,1728334290278,-500.71122886,0.00039452,120]
[340023170,1728334290289,-500.0,0.00039452,120]
[340023171,1728334290302,-500.0,0.00039452,120]
[340023172,1728334290314,-500.0,0.00039452,120]
[340023173,1728334290326,-443.94018111,0.00039452,120]
[340023174,1728334290336,-200.0,0.00039452,120]
[340023175,1728334290347,-500.0,0.00039452,120]
[340023176,1728334290360,-659.67,0.00039452,30]
[340023177,1728334290370,-843.64,0.00039452,120]
[340023178,1728334290381,-500.0,0.00039452,120]
[340023179,1728334290393,-826.06,0.00039452,120]
[340023180,1728334290403,-500.0,0.00039452,120]
[340023181,1728334290415,-369.35833253,0.00039452,120]
[340023182,1728334290427,-844.53,0.00039452,120]
[340023183,1728334290438,-500.0,0.00039452,120]
[340023184,1728334290451,-500.67278569,0.00039452,120]
[340023185,1728334290463,-500.0,0.00039452,120]
[340023186,1728334290473,-500.0,0.00039452,120]
[340023187,1728334290483,-501.53485031,0.00039452,120]
[340023188,1728334290494,-508.48381041,0.00039452,120]
[340023189,1728334290504,-500.0,0.00039452,120]
[340023190,1728334290513,-501.01674595,0.00039452,120]
[340023191,1728334290523,-500.0,0.00039452,120]
[340023192,1728334290534,-500.0,0.00039452,120]
[340023193,1728334290546,-500.0,0.00039452,120]
[340023194,1728334290555,-500.0,0.00039452,120]
[340023195,1728334290566,-500.0,0.00039452,120]
[340023196,1728334290577,-863.29,0.00039452,120]
[340023197,1728334290587,-714.69,0.00039452,120]
[340023198,1728334290598,-500.0,0.00039452,120]
[340023199,1728334290611,-500.0,0.00039452,120]
[340023200,1728334290625,-500.0,0.00039452,120]
[340023201,1728334290635,-500.631544,0.00039452,120]
[340023202,1728334290647,-500.0,0.00039452,120]
[340023203,1728334290659,-500.0,0.00039452,120]
[340023204,1728334290669,-537.33,0.00039452,120]
[340023205,1728334290680,-510.75397749,0.00039452,120]
[340023206,1728334290690,-500.0,0.00039452,120]
[340023207,1728334290701,-500.0,0.00039452,120]
[340023208,1728334290724,-371.55194257,0.00039452,120]
[340023209,1728334290735,-611.81,0.00039452,120]
[340023210,1728334290747,-500.0,0.00039452,120]
[340023211,1728334290886,-500.0,0.00039452,120]
[340023212,1728334290900,-500.0,0.00039452,120]
[340023213,1728334290910,-500.0,0.00039452,120]
[340023214,1728334290920,-679.62,0.00039452,120]
[340023215,1728334290930,-500.0,0.00039452,120]
[340023216,1728334290941,-500.0,0.00039452,120]
[340023217,1728334290953,-500.0,0.00039452,120]
[340023218,1728334290971,-769.77,0.00039452,120]
[340023219,1728334290980,-308.16040585,0.00039452,120]
[340023220,1728334290990,-500.0,0.00039452,120]
[340023221,1728334291001,-944.22,0.00039452,120]
[340023222,1728334291011,-500.0,0.00039452,120]
[340023223,1728334291022,-514.42,0.00039452,120]
[340023224,1728334291032,-500.0,0.00039452,120]
[340023225,1728334291043,-500.0,0.00039452,120]
[340023226,1728334291053,-500.0,0.00039452,120]
[340023227,1728334291063,-677.66,0.00039452,120]
[340023228,1728334291074,-500.0,0.00039452,120]
[340023229,1728334291086,-10035.21,0.00039452,18]
[340023230,1728334291097,-1000.0,0.0003953,120]
[340023231,1728334291108,-152.0,0.00039549,15]
[340023232,1728334291121,-1557.94,0.00039726,120]
[340023233,1728334291131,-501.45066273,0.00039726,120]
[340023234,1728334291141,-240.90337324,0.00039726,120]
[340023235,1728334291152,-501.48594915,0.00039726,120]
[340023236,1728334291162,-500.0,0.00039726,120]
[340023237,1728334291173,-500.0,0.00039726,120]
[340023238,1728334291184,-500.0,0.00039726,120]
[340023239,1728334291194,-501.04209161,0.00039726,120]
[340023240,1728334291205,-500.0,0.00039726,120]
[340023241,1728334291216,-346.45448349,0.00039726,120]
[340023242,1728334291228,-878.3,0.00039726,120]
[340023243,1728334291238,-500.0,0.00039726,120]
[340023244,1728334291248,-500.46898609,0.00039726,120]
[340023245,1728334291257,-302.40145755,0.00039726,120]
[340023246,1728334291266,-500.98374811,0.00039726,120]
[340023247,1728334291276,-545.39,0.00039726,120]
[340023248,1728334291286,-500.0,0.00039726,120]
[340023249,1728334291296,-603.96,0.00039726,120]
[340023250,1728334291306,-500.0,0.00039726,120]
[340023251,1728334291316,-500.0,0.00039726,120]
[340023252,1728334291325,-501.29719527,0.00039726,120]
[340023253,1728334291335,-355.0732394,0.00039726,120]
[340023254,1728334291345,-500.0,0.00039726,120]
[340023255,1728334291355,-502.10697049,0.00039726,120]
[340023256,1728334291365,-500.0,0.00039726,120]
[340023257,1728334291375,-500.0,0.00039726,120]
[340023258,1728334291385,-500.0,0.00039726,120]
[340023259,1728334291395,-500.0,0.00039726,120]
[340023260,1728334291406,-500.0,0.00039726,90]
[340023261,1728334291417,-500.0,0.00039726,120]
[340023262,1728334291427,-500.0,0.00039726,120]
[340023263,1728334291437,-504.72998303,0.00039726,120]
[340023264,1728334291446,-602.28563472,0.00039726,120]
[340023265,1728334291458,-800.19,0.00039726,120]
[340023266,1728334291469,-500.0,0.00039726,120]
[340023267,1728334291479,-501.08211568,0.00039726,120]
[340023268,1728334291491,-751.04,0.00039726,120]
[340023269,1728334291502,-500.0,0.00039726,7]
[340023270,1728334291514,-500.0,0.00039726,120]
[340023271,1728334291524,-500.0,0.00039726,120]
[340023272,1728334291533,-500.0,0.00039726,120]
[340023273,1728334291543,-500.0,0.00039726,120]
[340023274,1728334291553,-841.21,0.00039726,120]
[340023275,1728334291565,-525.08346859,0.00039726,120]
[340023276,1728334291575,-500.0,0.00039726,120]
[340023277,1728334291588,-500.0,0.00039726,120]
[340023278,1728334291598,-500.0,0.00039726,20]
[340023279,1728334291608,-500.0,0.00039726,120]
[340023280,1728334291618,-533.5155068,0.00039726,60]
[340023281,1728334291628,-501.23499135,0.00039726,120]
[340023282,1728334291637,-500.0,0.00039726,120]
[340023283,1728334291647,-500.0,0.00039726,120]
[340023284,1728334291656,-500.67536605,0.00039726,7]
[340023285,1728334291666,-501.17257426,0.00039726,120]
[340023286,1728334291677,-500.0,0.00039726,120]
[340023287,1728334291688,-500.0,0.00039726,120]
[340023288,1728334291700,-335.99450486,0.00039726,120]
[340023289,1728334291710,-610.16355432,0.00039726,120]
[340023290,1728334291720,-485.92596096,0.00039726,120]
[340023291,1728334291729,-500.0,0.00039726,30]
[340023292,1728334291740,-500.0,0.00039726,120]
[340023293,1728334291750,-612.78,0.00039726,120]
[340023294,1728334291760,-500.0,0.00039726,120]
[340023295,1728334291771,-500.0,0.00039726,120]
[340023296,1728334291781,-500.0,0.00039726,120]
[340023297,1728334291793,-500.0,0.00039726,120]
[340023298,1728334291805,-589.28,0.00039726,120]
[340023299,1728334291815,-500.0,0.00039726,120]
[340023300,1728334291826,-500.0,0.00039726,120]
[340023301,1728334291837,-500.0,0.00039726,120]
[340023302,1728334291847,-500.0,0.00039726,120]
[340023303,1728334291857,-557.3,0.00039726,120]
[340023304,1728334291868,-500.0,0.00039726,120]
[340023305,1728334291881,-500.0,0.00039726,120]
[340023306,1728334291891,-501.0496223,0.00039726,120]
[340023307,1728334291902,-500.0,0.00039726,120]
[340023308,1728334291912,-500.0,0.00039726,120]
[340023309,1728334291921,-500.0,0.00039726,120]
[340023310,1728334291933,-500.0,0.00039726,120]
[340023311,1728334291943,-500.0,0.00039726,120]
[340023312,1728334291954,-500.0,0.00039726,120]
[340023313,1728334291963,-500.0,0.00039726,120]
[340023314,1728334291973,-500.0,0.00039726,120]
[340023315,1728334291983,-500.0,0.00039726,120]
[340023316,1728334291992,-500.0,0.00039726,120]
[340023317,1728334292002,-500.0,0.00039726,120]
[340023318,1728334292012,-501.26051863,0.00039726,120]
[340023319,1728334292021,-501.52776561,0.00039726,120]
[340023320,1728334292031,-500.0,0.00039726,120]
[340023321,1728334292041,-500.0,0.00039726,120]
[340023322,1728334292050,-949.88,0.00039726,120]
[340023323,1728334292060,-660.6,0.00039726,120]
[340023324,1728334292069,-500.0,0.00039726,120]
[340023325,1728334292078,-500.0,0.00039726,120]
[340023326,1728334292088,-754.75,0.00039726,120]
[340023327,1728334292097,-500.0,0.00039726,120]
[340023328,1728334292106,-150.24747848,0.00039726,120]
[340023329,1728334292119,-500.0,0.00039726,120]
[340023330,1728334292129,-500.0,0.00039726,120]
[340023331,1728334292138,-818.47,0.00039726,120]
[340023332,1728334292148,-500.0,0.00039726,120]
[340023333,1728334292159,-500.0,0.00039726,120]
[340023334,1728334292169,-327.30324519,0.00039726,120]
[340023335,1728334292178,-550.91,0.00039726,120]
[340023336,1728334292188,-500.0,0.00039726,120]
[340023337,1728334292198,-500.76083026,0.00039726,120]
[340023338,1728334292208,-500.0,0.00039726,120]
[340023339,1728334292217,-500.0,0.00039726,120]
[340023340,1728334292226,-500.0,0.00039726,120]
[340023341,1728334292236,-625.1,0.00039726,120]
[340023342,1728334292245,-501.08521373,0.00039726,120]
[340023343,1728334292255,-914.39,0.00039726,120]
[340023344,1728334292264,-500.0,0.00039726,120]
[340023345,1728334292274,-500.0,0.00039726,120]
[340023346,1728334292284,-500.0,0.00039726,120]
[340023347,1728334292294,-500.0,0.00039726,120]
[340023348,1728334292305,-500.0,0.00039726,120]
[340023349,1728334292316,-224.96537552,0.00039726,120]
[340023350,1728334292328,-500.0,0.00039726,120]
[340023351,1728334292338,-500.0,0.00039726,120]
[340023352,1728334292350,-500.0,0.00039726,120]
[340023353,1728334292362,-500.0,0.00039726,120]
[340023354,1728334292372,-500.0,0.00039726,120]
[340023355,1728334292383,-500.0,0.00039726,120]
[340023356,1728334292394,-500.0,0.00039726,120]
[340023357,1728334292406,-500.0,0.00039726,120]
[340023358,1728334292417,-501.0969982,0.00039726,120]
[340023359,1728334292427,-500.0,0.00039726,120]
[340023360,1728334292437,-500.0,0.00039726,120]
[340023361,1728334292450,-470.21683856,0.00039726,120]
[340023362,1728334292463,-500.0,0.00039726,120]
[340023363,1728334292473,-500.0,0.00039726,60]
[340023364,1728334292486,-500.0,0.00039726,120]
[340023365,1728334292497,-1047.98,0.00039726,120]
[340023366,1728334292507,-500.0,0.00039726,120]
[340023367,1728334292517,-503.40646698,0.00039726,120]
[340023368,1728334292527,-500.0,0.00039726,120]
[340023369,1728334292540,-683.38,0.00039726,120]
[340023370,1728334292551,-500.0,0.00039726,120]
[340023371,1728334292563,-500.0,0.00039726,120]
[340023372,1728334292574,-500.0,0.00039726,120]
[340023373,1728334292584,-1235.61,0.00039726,120]
[340023374,1728334292595,-1137.42,0.00039726,120]
[340023375,1728334292606,-512.86976003,0.00039726,120]
[340023376,1728334292617,-500.87853448,0.00039726,120]
[340023377,1728334292627,-500.0,0.00039726,120]
[340023378,1728334292637,-500.0,0.00039726,120]
[340023379,1728334292646,-628.81449053,0.00039726,120]
[340023380,1728334292658,-500.0,0.00039726,120]
[340023381,1728334292668,-500.0,0.00039726,120]
[340023382,1728334292679,-500.0,0.00039726,120]
[340023383,1728334292689,-500.0,0.00039726,120]
[340023384,1728334292700,-500.0,0.00039726,120]
[340023385,1728334292712,-500.0,0.00039726,120]
[340023386,1728334292723,-500.0,0.00039726,120]
[340023387,1728334292733,-534.53967219,0.00039726,120]
[340023388,1728334292743,-501.30414038,0.00039726,120]
[340023389,1728334292753,-500.0,0.00039726,120]
[340023390,1728334292763,-575.41,0.00039726,120]
[340023391,1728334292774,-500.0,0.00039726,120]
[340023392,1728334292785,-500.0,0.00039726,120]
[340023393,1728334292797,-500.0,0.00039726,120]
[340023394,1728334292806,-500.0,0.00039726,120]
[340023395,1728334292818,-500.0,0.00039726,120]
[340023396,1728334292831,-800.54,0.00039726,120]
[340023397,1728334292843,-500.0,0.00039726,120]
[340023398,1728334292854,-709.12,0.00039726,120]
[340023399,1728334292864,-507.66634036,0.00039726,120]
[340023400,1728334292873,-711.22,0.00039726,120]
[340023401,1728334292883,-500.0,0.00039726,120]
[340023402,1728334292893,-550.77,0.00039726,120]
[340023403,1728334292902,-500.0,0.00039726,120]
[340023404,1728334292912,-500.0,0.00039726,120]
[340023405,1728334292922,-501.06437264,0.00039726,120]
[340023406,1728334292931,-478.74089785,0.00039726,120]
[340023407,1728334292941,-744.73,0.00039726,120]
[340023408,1728334292952,-500.0,0.00039726,120]
[340023409,1728334292963,-500.0,0.00039726,120]
[340023410,1728334292975,-750.18,0.00039726,120]
[340023411,1728334292986,-500.0,0.00039726,120]
[340023412,1728334292997,-500.96680633,0.00039726,120]
[340023413,1728334293008,-501.99761511,0.00039726,120]
[340023414,1728334293018,-500.0,0.00039726,120]
[340023415,1728334293029,-607.18,0.00039726,120]
[340023416,1728334293040,-1202.82,0.00039726,120]
[340023417,1728334293050,-500.0,0.00039726,120]
[340023418,1728334293059,-500.0,0.00039726,120]
[340023419,1728334293068,-500.0,0.00039726,120]
[340023420,1728334293078,-500.0,0.00039726,120]
[340023421,1728334293091,-311.76978534,0.00039726,120]
[340023422,1728334293101,-1170.58,0.00039726,120]
[340023423,1728334293113,-500.0,0.00039726,120]
[340023424,1728334293123,-500.0,0.00039726,120]
[340023425,1728334293132,-500.0,0.00039726,120]
[340023426,1728334293142,-637.28,0.00039726,120]
[340023427,1728334293152,-500.0,0.00039726,120]
[340023428,1728334293162,-500.0,0.00039726,120]